bitfinex/quotes_ETHUSD_20230113
["timestamp","ask_amount","ask_price","bid_price","bid_amount"]
[1673635933916,0.5283,1419.9,1419.8,0.064742]
[1673635934126,0.5282,1420.0,1419.8,0.064742]
[1673635934463,4.13453272,1420.0,1419.8,0.064742]
[1673635935087,3.60633272,1419.9,1419.8,0.064742]
[1673635935303,18.86981272,1419.9,1419.8,0.064742]
[1673635935469,25.97855272,1419.9,1419.8,0.064742]
[1673635935685,32.45245299,1419.9,1419.8,0.064742]
[1673635937142,10.14623299,1419.9,1419.8,0.064742]
[1673635937499,6.67233272,1419.9,1419.8,0.064742]
[1673635938093,6.67233272,1419.9,1419.8,1.494742]
[1673635938094,0.066,1419.9,1419.8,1.494742]
[1673635938266,3.5282,1420.1,1419.8,1.494742]
[1673635938432,7.13453272,1420.1,1419.8,1.494742]
[1673635938647,7.20053272,1420.1,1419.8,15.581002]
[1673635938986,7.20053272,1420.1,1419.8,24.96504469]
[1673635939599,0.066,1420.1,1419.8,24.96504469]
[1673635939789,7.84388384,1420.2,1419.8,24.96504469]
[1673635940025,11.45021656,1420.2,1419.8,24.97101142]
[1673635940234,3.68821656,1420.2,1419.8,24.97101142]
[1673635940436,3.62221656,1420.2,1420.0,7.04225]
[1673635940669,0.01588384,1420.2,1420.0,0.06534481]
[1673635940865,0.01588384,1420.2,1419.9,16.64744595]
[1673635941074,0.01588384,1420.2,1419.9,23.69018595]
[1673635941250,0.01588384,1420.2,1420.0,2.3690186]
[1673635941459,0.01588384,1420.2,1420.1,14.0835]
[1673635941686,1.44588384,1420.2,1420.1,14.14884481]
[1673635941909,0.01588384,1420.2,1420.1,14.14884481]
[1673635942324,0.01588384,1420.2,1420.1,23.55253461]
[1673635942534,0.01788384,1420.2,1420.1,23.55053461]
[1673635942753,0.01588384,1420.2,1420.1,16.51078461]
[1673635942939,0.01588384,1420.2,1420.1,2.42728461]
[1673635943285,7.05714384,1420.2,1420.1,0.00596546]
[1673635943472,7.12314384,1420.2,1420.1,0.00596546]
[1673635943983,0.08188384,1420.2,1420.1,0.00596546]
[1673635944227,0.01588384,1420.2,1420.1,0.00596546]
[1673635944394,1.44588384,1420.2,1420.1,0.00596546]
[1673635944605,0.01588384,1420.2,1420.1,0.00596546]
[1673635945276,0.01588384,1420.2,1420.1,1.43596546]
[1673635948090,0.01588384,1420.2,1420.1,15.51946546]
[1673635948300,0.01588384,1420.2,1420.1,25.3750923]
[1673635951400,0.01198935,1420.2,1420.1,25.3750923]
[1673635952420,0.01198935,1420.2,1420.1,2.8198423]
[1673635952749,0.01198935,1420.2,1420.1,1.43596546]
[1673635952909,0.01198935,1420.2,1420.1,0.00596546]
[1673635953569,1.44198935,1420.2,1420.1,0.00596546]
[1673635953767,8.48324935,1420.2,1419.9,7.10778481]
[1673635953985,1.50798935,1420.2,1419.9,14.15052481]
[1673635954170,3.00098429,1420.2,1419.9,5.10189748]
[1673635954398,3.00098429,1420.2,1419.9,5.16789748]
[1673635954592,3.00098429,1420.2,1419.9,12.21063748]
[1673635957346,10.04224429,1420.2,1419.9,12.21063748]
[1673635957562,10.10824429,1420.2,1419.9,5.16789748]
[1673635957905,1.01082443,1420.1,1419.9,7.10868]
[1673635959233,1.01082443,1420.1,1419.9,14.15142]
[1673635959449,1.63698429,1420.2,1419.9,14.15142]
[1673635959648,1.57098429,1420.2,1419.9,21.19416]
[1673635959850,0.01198935,1420.2,1419.9,21.22170408]
[1673635960523,0.01198935,1420.2,1419.9,23.27299602]
[1673635960761,0.01198935,1420.2,1419.9,24.32638021]
[1673635960967,0.01198935,1420.2,1419.9,25.51638021]
[1673635961126,0.01198935,1420.2,1420.0,2.55163802]
[1673635961547,0.01198935,1420.2,1420.1,7.04175]
[1673635961794,0.01198935,1420.2,1420.1,0.066]
[1673635962077,22.56576935,1420.2,1420.0,0.066]
[1673635962327,22.56576935,1420.2,1419.9,4.32222021]
[1673635962328,22.63176935,1420.2,1419.9,0.02754408]
[1673635963121,23.15996935,1420.2,1419.9,0.02754408]
[1673635963333,16.39986694,1420.1,1419.9,0.02754408]
[1673635963557,2.38199694,1420.1,1419.9,0.02754408]
[1673635963766,14.62292935,1420.2,1419.9,14.11296408]
[1673635963767,7.64744935,1420.2,1419.9,14.11296408]
[1673635964012,7.64744935,1420.2,1419.9,0.09354408]
[1673635964220,7.64744935,1420.2,1419.9,7.07028408]
[1673635964221,18.29504207,1420.2,1419.9,7.07028408]
[1673635964454,18.29504207,1420.2,1419.9,7.13628408]
[1673635964811,18.29504207,1420.2,1419.9,0.09354408]
[1673635965056,18.29504207,1420.2,1419.9,0.02754408]
[1673635965588,18.29504207,1420.2,1419.9,7.07027408]
[1673635965826,1.82950421,1420.1,1419.9,7.13627408]
[1673635965955,18.29504207,1420.2,1419.9,7.13627408]
[1673635966170,18.29504207,1420.2,1419.9,22.40975408]
[1673635966171,0.60618935,1420.2,1419.9,22.40975408]
[1673635966432,0.01198935,1420.2,1420.1,21.12525]
[1673635966745,0.01198935,1420.2,1420.1,21.19125]
[1673635966901,0.01198935,1420.2,1420.1,23.310375]
[1673635967278,0.01198935,1420.2,1420.1,2.185125]
[1673635967423,0.01198935,1420.2,1420.1,1.43]
[1673635967634,0.01198935,1420.2,1420.1,8.47175]
[1673635968019,0.01198935,1420.2,1420.1,8.53775]
[1673635970324,0.01198935,1420.2,1420.1,25.55306773]
[1673635970627,0.01198935,1420.2,1420.1,27.60435967]
[1673635970783,0.01198935,1420.2,1420.1,32.24498906]
[1673635972912,0.01198935,1420.2,1420.1,33.29837325]
[1673635973099,0.01198935,1420.2,1420.1,32.24498906]
[1673635973309,0.01198935,1420.2,1420.1,33.29837325]
[1673635973972,49.09481941,1420.5,1420.1,33.29837325]
[1673635974151,39.41291941,1420.5,1420.1,31.55155552]
[1673635974363,39.41073733,1420.5,1420.2,3.15515555]
[1673635974602,39.41073733,1420.5,1420.3,21.12228]
[1673635974603,7.996,1420.5,1420.3,21.12228]
[1673635974814,1.11291941,1420.5,1420.3,21.18828]
[1673635975032,1.04691941,1420.5,1420.3,21.18828]
[1673635976618,1.04691941,1420.5,1420.3,7.10676]
[1673635976830,3.85424246,1420.5,1420.3,0.066]
[1673635977053,3.85424246,1420.5,1420.2,14.1481]
[1673635977201,2.2764917,1420.5,1420.2,21.18917]
[1673635977410,2.62467017,1420.5,1420.2,21.18917]
[1673635977837,23.74414017,1420.5,1420.2,0.066]
[1673635978046,1.04691941,1420.4,1420.1,19.61627055]
[1673635978291,8.08739941,1420.4,1420.1,11.75887055]
[1673635978532,8.15339941,1420.4,1420.1,11.75887055]
[1673635978829,15.19387941,1420.4,1420.1,11.75887055]
[1673635978993,15.19387941,1420.4,1420.1,16.20262055]
[1673635978994,8.15339941,1420.4,1420.1,16.20262055]
[1673635979202,24.61526243,1420.4,1420.1,0.066]
[1673635979406,24.61526243,1420.4,1420.0,12.68947474]
[1673635979407,21.18111515,1420.4,1420.0,12.68947474]
[1673635979636,21.18111515,1420.4,1420.0,9.5827]
[1673635979637,1.04691941,1420.3,1420.0,9.5827]
[1673635979825,22.69796941,1420.3,1420.0,9.5827]
[1673635980036,26.37030213,1420.3,1420.0,9.5827]
[1673635980293,2.63703021,1420.2,1420.0,9.5827]
[1673635980614,10.72524962,1420.2,1420.0,9.5827]
[1673635980925,10.79124962,1420.2,1420.0,0.066]
[1673635981139,3.74994962,1420.2,1419.9,14.77398]
[1673635981301,3.68394962,1420.2,1419.9,7.10868]
[1673635982509,27.45967767,1420.3,1420.0,1.74702735]
[1673635982510,19.32906213,1420.3,1420.0,1.74702735]
[1673635982971,1.64101941,1420.3,1420.0,15.83144735]
[1673635983184,12.07539475,1420.4,1420.1,1.74691564]
[1673635983400,22.96049064,1420.4,1420.1,1.74691564]
[1673635985221,22.96049064,1420.4,1420.1,8.78860564]
[1673635985222,15.92003064,1420.4,1420.1,8.78860564]
[1673635985397,15.92003064,1420.4,1420.1,7.10769]
[1673635985606,22.96039064,1420.4,1420.1,0.066]
[1673635985812,22.96039064,1420.4,1420.0,22.27289841]
[1673635986027,22.96039064,1420.4,1420.1,1.74691264]
[1673635986239,2.29603906,1420.3,1420.1,1.74691264]
[1673635987531,2.29603906,1420.3,1420.1,8.78863264]
[1673635987767,2.29603906,1420.3,1420.1,7.10772]
[1673635988441,3.34295847,1420.3,1420.1,0.066]
[1673635988652,3.34295847,1420.3,1420.0,22.27269841]
[1673635988861,7.04126,1420.2,1420.0,0.09325422]
[1673635989090,0.066,1420.2,1420.0,0.02725422]
[1673635989317,10.45001847,1420.3,1420.0,7.06941422]
[1673635989530,10.45001847,1420.3,1420.0,14.17766422]
[1673635990351,1.04500185,1420.2,1420.0,0.09325422]
[1673635990597,2.09192126,1420.2,1420.0,7.04223]
[1673635990770,2.09392126,1420.2,1420.0,14.14848]
[1673635991023,2.09392126,1420.2,1420.0,7.10823]
[1673635991024,1.04500185,1420.2,1420.0,7.10823]
[1673635991254,1.04500185,1420.2,1420.0,14.15048]
[1673635991631,1.04500185,1420.2,1420.0,0.066]
[1673635991896,1.04500185,1420.2,1419.9,24.30014474]
[1673635992056,1.04500185,1420.2,1420.0,1.74702997]
[1673635992266,1.04500185,1420.2,1420.0,8.78925997]
[1673635992610,1.04500185,1420.2,1420.0,7.10823]
[1673635993162,8.08636185,1420.2,1420.0,0.066]
[1673635993314,8.08636185,1420.2,1419.9,24.23420474]
[1673635993315,8.15236185,1420.2,1419.9,17.25763474]
[1673635993688,8.15236185,1420.2,1420.0,1.74704281]
[1673635994522,0.066,1420.2,1420.0,8.78927281]
[1673635994680,28.63163577,1420.3,1420.0,7.10823]
[1673635994681,28.69763577,1420.3,1420.0,7.10823]
[1673635994890,7.04128,1420.2,1420.0,0.066]
[1673635995102,0.066,1420.2,1419.9,25.90561392]
[1673635995360,28.69757577,1420.3,1420.0,1.74699699]
[1673635995573,28.69757577,1420.3,1420.0,8.78916699]
[1673635995731,28.69757577,1420.3,1420.0,7.10817]
[1673635995941,21.65646577,1420.3,1420.0,7.10817]
[1673635996151,23.23421653,1420.3,1420.0,0.066]
[1673635996416,21.65646577,1420.3,1419.9,25.90564392]
[1673635996631,28.69768577,1420.3,1420.0,1.74698339]
[1673635997572,28.69768577,1420.3,1420.0,8.78920339]
[1673635997780,28.69768577,1420.3,1420.0,7.10822]
[1673635997992,28.69768577,1420.3,1420.0,0.066]
[1673635998308,28.69768577,1420.3,1419.9,25.90560392]
[1673635998512,1.04691941,1420.2,1419.9,24.32751676]
[1673635998884,1.04691941,1420.2,1419.9,2.14678257]
[1673635998885,15.12948941,1420.2,1419.9,2.14678257]
[1673635999098,25.26434306,1420.2,1419.9,0.02739202]
[1673635999353,27.4013184,1420.2,1419.9,0.02739202]
[1673635999575,3.54691941,1420.1,1419.9,0.02739202]
[1673635999789,7.04225,1420.0,1419.8,11.31352619]
[1673635999939,21.19275,1420.0,1419.8,0.130742]
[1673636000311,24.79908272,1420.0,1419.8,0.064742]
[1673636000536,2.5,1419.9,1419.8,0.064742]
[1673636000837,23.62822,1419.9,1419.8,0.064742]
[1673636001005,27.4469299,1419.9,1419.8,0.064742]
[1673636001210,25.99384931,1419.9,1419.8,0.064742]
[1673636001458,24.9469299,1419.9,1419.8,0.06217283]
[1673636002814,28.55326262,1419.9,1419.8,0.06217283]
[1673636003415,22.03882262,1419.9,1419.8,0.06217283]
[1673636007633,29.08156262,1419.9,1419.8,0.06217283]
[1673636008061,22.03882262,1419.9,1419.8,0.06217283]
[1673636008268,31.31348203,1419.9,1419.8,0.06217283]
[1673636008720,34.31348203,1419.9,1419.8,0.06217283]
[1673636009340,34.54348203,1419.9,1419.8,0.06217283]
[1673636009856,32.31156262,1419.9,1419.8,0.06217283]
[1673636010043,34.54548203,1419.9,1419.8,0.06217283]
[1673636010952,11.18334262,1419.9,1419.8,0.06217283]
[1673636011141,7.20063272,1419.9,1419.8,0.06217283]
[1673636012677,7.20063272,1419.9,1419.8,7.10541283]
[1673636012899,7.20063272,1419.9,1419.8,0.12817283]
[1673636013108,7.20063272,1419.9,1419.8,0.06217283]
[1673636015426,0.5943,1419.9,1419.8,15.57865283]
[1673636015749,7.8188,1420.0,1419.8,10.87670231]
[1673636015960,0.066,1420.0,1419.8,8.60141283]
[1673636016300,7.63599,1420.1,1419.8,8.60141283]
[1673636017519,7.63599,1420.1,1419.8,7.17141283]
[1673636017714,18.41680992,1420.1,1419.8,0.12817283]
[1673636017921,0.5282,1420.0,1419.8,0.06217283]
[1673636018145,7.5707,1420.0,1419.8,0.06217283]
[1673636018512,7.6367,1420.0,1419.8,0.06217283]
[1673636019960,14.6792,1420.0,1419.8,0.06217283]
[1673636020134,17.32989393,1420.0,1419.8,0.06217283]
[1673636021046,10.28739393,1420.0,1419.8,0.06217283]
[1673636024068,17.32989393,1420.0,1419.8,0.06217283]
[1673636024861,10.28739393,1420.0,1419.8,0.06217283]
[1673636026578,10.28726393,1420.0,1419.8,0.06217283]
[1673636028337,1.02872639,1419.9,1419.8,0.06217283]
[1673636028578,10.28726393,1420.0,1419.8,0.06217283]
[1673636028579,3.24489393,1420.0,1419.8,0.06217283]
[1673636028791,3.17889393,1420.0,1419.8,0.06217283]
[1673636029023,17.26362393,1420.0,1419.8,0.06217283]
[1673636029202,17.32962393,1420.0,1419.8,0.06217283]
[1673636029883,2.71669393,1420.0,1419.8,14.14859283]
[1673636030111,7.63599,1420.1,1419.8,14.21459283]
[1673636030413,11.24232272,1420.1,1419.8,14.21459283]
[1673636030587,12.28924213,1420.1,1419.8,14.21459283]
[1673636031026,11.76104213,1420.1,1419.8,14.21459283]
[1673636031356,15.77886142,1420.1,1419.8,14.21459283]
[1673636031516,15.77886142,1420.1,1419.8,7.17135283]
[1673636031738,3.55633272,1420.0,1419.8,0.12817283]
[1673636032054,14.08548,1419.9,1419.8,0.06217283]
[1673636032300,14.15148,1419.9,1419.8,0.06217283]
[1673636032473,24.02394121,1419.9,1419.8,0.06217283]
[1673636032892,27.63027393,1419.9,1419.8,0.06217283]
[1673636033107,34.9722441,1419.9,1419.8,0.06217283]
[1673636033319,34.71499334,1419.9,1419.8,0.06217283]
[1673636033522,40.04524542,1419.9,1419.8,0.06217283]
[1673636033948,35.24082532,1419.9,1419.8,0.06217283]
[1673636034188,36.82073799,1419.9,1419.8,0.06217283]
[1673636035837,36.82084963,1419.9,1419.8,0.06217283]
[1673636037083,38.00384963,1419.9,1419.8,0.06217283]
[1673636037974,36.42382532,1419.9,1419.8,0.06217283]
[1673636038296,38.00467129,1419.9,1419.8,0.06217283]
[1673636038455,34.71808855,1419.9,1419.8,0.06217283]
[1673636038675,21.68664468,1419.9,1419.8,0.06217283]
[1673636039213,22.07749871,1419.9,1419.8,0.06217283]
[1673636039426,29.12023871,1419.9,1419.8,0.06217283]
[1673636039622,22.07749871,1419.9,1419.8,0.06217283]
[1673636039830,29.12023871,1419.9,1419.8,0.06217283]
[1673636040296,37.74382468,1419.9,1419.8,0.06217283]
[1673636040511,26.39023871,1419.9,1419.8,0.06217283]
[1673636040684,33.43297871,1419.9,1419.8,0.06217283]
[1673636040896,26.39023871,1419.9,1419.8,0.06217283]
[1673636041741,25.83057006,1419.9,1419.8,0.06217283]
[1673636041953,32.87331006,1419.9,1419.8,0.06217283]
[1673636042159,33.4333149,1419.9,1419.8,0.06217283]
[1673636042403,35.24416087,1419.9,1419.8,0.06217283]
[1673636042610,36.29370748,1419.9,1419.8,0.06217283]
[1673636042942,36.82200748,1419.9,1419.8,0.06217283]
[1673636043299,35.24116151,1419.9,1419.8,0.06217283]
[1673636043505,39.47016151,1419.9,1419.8,0.06217283]
[1673636043975,41.05070236,1419.9,1419.8,0.06217283]
[1673636047446,41.05070236,1419.9,1419.6,0.06618253]
[1673636047654,0.0399466,1419.5,1419.3,0.14788059]
[1673636047828,34.41939407,1419.4,1419.3,0.08188059]
[1673636048071,39.73377685,1419.4,1419.3,0.08188059]
[1673636048271,47.19277685,1419.4,1419.3,0.08188059]
[1673636049556,44.93041382,1419.4,1419.3,0.08188059]
[1673636049872,48.41475519,1419.4,1419.3,0.08188059]
[1673636050086,49.20147038,1419.4,1419.3,3.58188059]
[1673636050254,13.73000031,1419.4,1419.3,3.58188059]
[1673636050464,34.86569031,1419.4,1419.3,3.58188059]
[1673636050890,36.05069031,1419.4,1419.3,3.58188059]
[1673636051102,35.52219031,1419.4,1419.3,3.58188059]
[1673636051535,39.75119031,1419.4,1419.3,3.58188059]
[1673636051736,40.93119031,1419.4,1419.3,3.58188059]
[1673636051956,42.29696436,1419.4,1419.3,3.58188059]
[1673636052354,40.93119031,1419.4,1419.3,3.58188059]
[1673636052579,10.82211903,1419.3,1419.2,0.07889071]
[1673636052790,59.36720463,1419.3,1419.2,0.07889071]
[1673636053127,62.31862518,1419.3,1419.2,0.07889071]
[1673636053288,61.26576864,1419.3,1419.2,0.07889071]
[1673636053764,53.97067576,1419.3,1419.2,0.07889071]
[1673636053927,40.57539175,1419.3,1419.2,0.07889071]
[1673636054144,47.62111175,1419.3,1419.2,0.07889071]
[1673636054759,40.57539175,1419.3,1419.2,0.07889071]
[1673636055532,45.03439175,1419.3,1419.2,0.07889071]
[1673636056440,6.729,1419.2,1419.1,1.3e-06]
[1673636056696,34.12318744,1419.2,1419.1,1.3e-06]
[1673636057069,16.34274744,1419.2,1419.1,1.3e-06]
[1673636057280,23.38896744,1419.2,1419.1,1.3e-06]
[1673636057756,30.43518744,1419.2,1419.1,1.3e-06]
[1673636058327,31.62518744,1419.2,1419.1,1.3e-06]
[1673636058789,32.15368744,1419.2,1419.1,1.3e-06]
[1673636060858,36.94103441,1419.2,1419.1,1.3e-06]
[1673636061697,37.64959842,1419.2,1419.1,1.3e-06]
[1673636062117,40.58635145,1419.2,1419.1,1.3e-06]
[1673636062329,45.37274416,1419.2,1419.1,1.3e-06]
[1673636063012,52.41896416,1419.2,1419.1,1.3e-06]
[1673636063183,59.83196416,1419.2,1419.1,1.3e-06]
[1673636063392,70.38703598,1419.2,1419.0,0.06443959]
[1673636063625,41.36012914,1419.1,1419.0,0.06443959]
[1673636063840,71.89005914,1419.1,1419.0,0.06443959]
[1673636064165,6.729,1419.0,1418.9,0.08738209]
[1673636064338,6.729,1419.0,1418.4,8.1886]
[1673636064339,50.53532701,1419.0,1418.4,8.1886]
[1673636064558,5.416,1418.7,1418.4,8.1886]
[1673636064899,24.75393272,1418.6,1418.4,0.066]
[1673636065215,24.75393272,1418.6,1418.3,9.58519883]
[1673636065216,24.81993272,1418.6,1418.3,9.58519883]
[1673636065376,3.67233272,1418.6,1418.3,16.63557883]
[1673636065586,3.60633272,1418.6,1418.3,16.63557883]
[1673636065914,3.60633272,1418.6,1418.3,9.58519883]
[1673636066124,24.75393272,1418.6,1418.3,9.58519883]
[1673636066373,27.42056299,1418.6,1418.3,9.58519883]
[1673636066741,30.42056299,1418.6,1418.3,9.58519883]
[1673636067586,30.42056299,1418.6,1418.3,0.17079883]
[1673636067797,44.42056299,1418.6,1418.3,0.10479883]
[1673636068258,48.64956299,1418.6,1418.3,0.10479883]
[1673636068470,48.87956299,1418.6,1418.3,0.10479883]
[1673636068841,50.06856299,1418.6,1418.3,0.10479883]
[1673636069474,50.06856299,1418.6,1418.3,0.15479883]
[1673636070115,54.85118141,1418.6,1418.3,0.15479883]
[1673636070340,19.05045086,1418.5,1418.3,0.15479883]
[1673636070563,24.75690272,1418.4,1418.3,0.15479883]
[1673636070895,41.82290272,1418.4,1418.3,0.15479883]
[1673636071047,24.11619,1418.4,1418.3,1.58479883]
[1673636071255,3.066,1418.4,1418.3,1.58479883]
[1673636071466,0.066,1418.5,1418.3,1.53479883]
[1673636071672,0.5948,1418.6,1418.3,2.51129171]
[1673636071922,3.60633272,1418.6,1418.3,23.66269171]
[1673636072135,3.60633272,1418.6,1418.3,9.62748171]
[1673636072332,3.60633272,1418.6,1418.3,16.67817171]
[1673636072988,0.066,1418.7,1418.3,23.72886171]
[1673636073208,21.11432,1418.8,1418.4,10.61291617]
[1673636073397,3.0,1418.7,1418.4,10.67891617]
[1673636074312,3.0,1418.7,1418.4,3.62888617]
[1673636074535,3.0,1418.7,1418.4,3.56288617]
[1673636074684,13.65511272,1418.7,1418.4,3.56288617]
[1673636075054,21.1491,1418.5,1418.3,0.22079883]
[1673636075266,24.82143272,1418.5,1418.3,0.15479883]
[1673636075423,17.77173272,1418.5,1418.3,0.10479883]
[1673636075640,10.72203272,1418.5,1418.3,0.10479883]
[1673636076374,13.20411699,1418.5,1418.3,0.10479883]
[1673636076897,20.25381699,1418.5,1418.3,0.10479883]
[1673636077108,13.20411699,1418.5,1418.3,0.10479883]
[1673636077314,24.75690272,1418.4,1418.3,8.83e-06]
[1673636077596,28.91127142,1418.4,1418.3,8.83e-06]
[1673636078361,33.14027142,1418.4,1418.3,8.83e-06]
[1673636078571,26.09008142,1418.4,1418.3,8.83e-06]
[1673636078782,11.98970142,1418.4,1418.3,8.83e-06]
[1673636079037,6.90233272,1418.4,1418.3,8.83e-06]
[1673636079481,6.67233272,1418.4,1418.3,8.83e-06]
[1673636080126,13.72252272,1418.4,1418.3,8.83e-06]
[1673636081204,20.77271272,1418.4,1418.3,8.83e-06]
[1673636082469,6.67233272,1418.4,1418.3,8.83e-06]
[1673636082672,0.066,1418.4,1418.3,8.83e-06]
[1673636082930,7.04976,1418.5,1418.3,8.83e-06]
[1673636083104,13.72209272,1418.5,1418.3,8.83e-06]
[1673636083324,6.67233272,1418.5,1418.3,8.83e-06]
[1673636084181,24.75690272,1418.4,1418.3,8.83e-06]
[1673636084407,10.72252272,1418.4,1418.3,8.83e-06]
[1673636084823,3.67233272,1418.4,1418.3,8.83e-06]
[1673636085041,0.066,1418.5,1418.3,7.05069883]
[1673636085257,3.60633272,1418.5,1418.3,0.06600883]
[1673636085558,3.55633272,1418.5,1418.3,8.83e-06]
[1673636086663,24.70659272,1418.5,1418.3,8.83e-06]
[1673636086931,2.47065927,1418.4,1418.3,8.83e-06]
[1673636087136,7.05019,1418.4,1418.3,8.83e-06]
[1673636087356,14.16638,1418.4,1418.3,8.83e-06]
[1673636087659,7.11619,1418.4,1418.3,8.83e-06]
[1673636088237,24.82290272,1418.4,1418.3,8.83e-06]
[1673636088613,17.77271272,1418.4,1418.3,8.83e-06]
[1673636088758,20.67787199,1418.4,1418.3,8.83e-06]
[1673636089193,27.72806199,1418.4,1418.3,8.83e-06]
[1673636089657,30.95806199,1418.4,1418.3,8.83e-06]
[1673636089872,38.08386199,1418.4,1418.3,8.83e-06]
[1673636090084,43.60266532,1418.4,1418.3,8.83e-06]
[1673636090299,38.792426,1418.4,1418.3,8.83e-06]
[1673636090814,35.71586199,1418.4,1418.3,8.83e-06]
[1673636092493,10.10629199,1418.4,1418.3,8.83e-06]
[1673636092656,7.20113272,1418.4,1418.3,8.83e-06]
[1673636093819,6.67233272,1418.4,1418.3,8.83e-06]
[1673636094075,13.72252272,1418.4,1418.3,8.83e-06]
[1673636094288,20.77271272,1418.4,1418.3,8.83e-06]
[1673636094654,13.72252272,1418.4,1418.3,8.83e-06]
[1673636095334,29.65217427,1418.4,1418.3,8.83e-06]
[1673636095524,22.60198427,1418.4,1418.3,8.83e-06]
[1673636096386,29.88217427,1418.4,1418.3,8.83e-06]
[1673636097674,35.29917427,1418.4,1418.3,8.83e-06]
[1673636098308,54.33158155,1418.4,1418.3,8.83e-06]
[1673636098618,55.21525644,1418.4,1418.3,8.83e-06]
[1673636098978,32.43376,1418.2,1418.1,3.217705]
[1673636099197,44.47453784,1418.2,1418.1,3.217705]
[1673636100880,45.66453784,1418.2,1418.1,3.217705]
[1673636101520,46.37310185,1418.2,1418.1,3.217705]
[1673636101745,47.42357738,1418.2,1418.1,3.217705]
[1673636101974,46.37310185,1418.2,1418.1,3.217705]
[1673636102359,47.10840038,1418.2,1418.1,3.217705]
[1673636102577,48.0552962,1418.2,1418.1,3.217705]
[1673636102798,48.05593437,1418.2,1418.1,3.217705]
[1673636102971,48.76448961,1418.2,1418.1,3.217705]
[1673636104036,47.42420678,1418.2,1418.1,3.217705]
[1673636104204,50.3435965,1418.2,1418.1,3.217705]
[1673636104379,50.34360004,1418.2,1418.1,3.217705]
[1673636104593,48.76431523,1418.2,1418.1,3.217705]
[1673636104952,47.10904299,1418.2,1418.1,3.217705]
[1673636105092,47.817607,1418.2,1418.1,3.217705]
[1673636105298,55.230607,1418.2,1418.1,3.217705]
[1673636105513,56.17696075,1418.2,1418.1,3.217705]
[1673636105718,55.230607,1418.2,1418.1,3.217705]
[1673636106042,57.75624516,1418.2,1418.1,3.217705]
[1673636106297,56.17696035,1418.2,1418.1,3.217705]
[1673636106678,57.75624516,1418.2,1417.9,0.066]
[1673636106936,4.229,1418.0,1417.7,9.46037454]
[1673636107104,4.229,1418.0,1417.7,0.17697454]
[1673636107105,31.81705272,1417.9,1417.7,0.17697454]
[1673636107455,31.81705272,1417.9,1417.7,0.11097454]
[1673636107456,7.83533272,1417.8,1417.7,0.11097454]
[1673636107613,29.29087272,1417.8,1417.7,0.11097454]
[1673636109939,30.50087272,1417.8,1417.7,0.11097454]
[1673636110809,12.16551272,1417.8,1417.7,0.11097454]
[1673636111136,26.04187272,1417.8,1417.7,0.11097454]
[1673636111350,26.04187272,1417.8,1417.7,3.61097454]
[1673636112173,18.98869272,1417.8,1417.7,3.61097454]
[1673636112586,11.93551272,1417.8,1417.7,3.61097454]
[1673636112902,18.98869272,1417.8,1417.7,3.61097454]
[1673636114130,11.93551272,1417.8,1417.7,3.61097454]
[1673636115330,18.98869272,1417.8,1417.7,3.61097454]
[1673636115709,26.04187272,1417.8,1417.7,3.61097454]
[1673636116552,18.98869272,1417.8,1417.7,3.61097454]
[1673636116756,26.04187272,1417.8,1417.7,3.61097454]
[1673636118599,18.98869272,1417.8,1417.7,3.61097454]
[1673636118906,26.04187272,1417.8,1417.7,3.61097454]
[1673636121438,8.32918,1417.8,1417.7,3.61097454]
[1673636121759,1.276,1417.8,1417.7,25.15176368]
[1673636121951,1.21,1417.8,1417.7,18.16409368]
[1673636122169,1.21,1417.8,1417.7,4.05675368]
[1673636122503,1.21,1417.8,1417.7,3.99075368]
[1673636122873,1.21,1417.8,1417.7,11.04442368]
[1673636123084,1.21,1417.8,1417.7,11.13513797]
[1673636123643,1.21,1417.8,1417.7,25.24247797]
[1673636123839,1.21,1417.8,1417.7,18.18880797]
[1673636124018,1.21,1417.8,1417.7,19.37790381]
[1673636124220,1.21,1417.8,1417.7,27.61957381]
[1673636124435,1.21,1417.8,1417.7,20.56590381]
[1673636124643,1.21,1417.8,1417.7,13.51223381]
[1673636125011,1.21,1417.8,1417.7,6.45856381]
[1673636125381,1.21,1417.8,1417.7,5.26946797]
[1673636126754,1.21,1417.8,1417.7,6.45982743]
[1673636126961,1.21,1417.8,1417.7,6.45982809]
[1673636127166,1.21,1417.8,1417.7,6.4598282]
[1673636127373,1.21,1417.8,1417.7,28.8108382]
[1673636127586,1.21,1417.8,1417.7,30.47373855]
[1673636127846,1.21,1417.8,1417.7,31.52777006]
[1673636129271,1.21,1417.8,1417.7,17.42043006]
[1673636129484,1.21,1417.8,1417.7,15.75752971]
[1673636130108,1.21,1417.8,1417.7,18.25752971]
[1673636130529,1.21,1417.8,1417.7,25.31119971]
[1673636130889,1.21,1417.8,1417.7,26.88928687]
[1673636131214,0.066,1418.0,1417.8,2.72130402]
[1673636131430,8.63084493,1418.3,1417.9,19.09754949]
[1673636131581,12.30317765,1418.3,1418.1,1.179]
[1673636132333,18.30299272,1418.3,1418.1,1.179]
[1673636132522,25.35391272,1418.3,1418.1,1.179]
[1673636132941,34.38571647,1418.3,1418.1,1.179]
[1673636133274,22.80557923,1418.2,1418.1,1.179]
[1673636133483,23.97414299,1418.2,1418.1,1.179]
[1673636133696,22.87157923,1418.2,1418.1,1.179]
[1673636133922,22.27067493,1418.2,1418.1,1.179]
[1673636134348,21.21957,1418.2,1418.1,1.179]
[1673636135054,22.27067493,1418.2,1418.1,1.179]
[1673636135499,21.21957,1418.2,1418.1,1.179]
[1673636135709,22.27067493,1418.2,1418.1,1.179]
[1673636136954,22.87232606,1418.2,1418.1,1.179]
[1673636138037,24.45161087,1418.2,1418.1,1.179]
[1673636139249,28.3362474,1418.2,1418.1,1.179]
[1673636139464,29.43921599,1418.2,1418.1,1.179]
[1673636140872,25.55457946,1418.2,1418.1,1.179]
[1673636141093,25.55457946,1418.2,1418.0,1.19]
[1673636141094,24.45161087,1418.2,1418.0,1.19]
[1673636141394,23.84995974,1418.2,1418.0,1.19]
[1673636144776,27.45629246,1418.2,1418.0,1.19]
[1673636144941,21.15654,1418.0,1417.9,0.066]
[1673636145148,21.22254,1418.0,1417.8,1.41030402]
[1673636145573,22.27364493,1418.0,1417.8,1.41030402]
[1673636145783,21.22254,1418.0,1417.8,1.41030402]
[1673636146756,24.82887272,1418.0,1417.8,1.41030402]
[1673636146966,29.76896586,1418.0,1417.8,1.41030402]
[1673636147131,28.71786093,1418.0,1417.8,1.41030402]
[1673636147337,29.76896586,1418.0,1417.8,1.41030402]
[1673636148332,29.76896586,1418.0,1417.8,0.22130402]
[1673636148545,30.87279221,1418.0,1417.8,0.22130402]
[1673636148701,2.48727024,1417.9,1417.8,0.22130402]
[1673636149046,24.69641517,1417.9,1417.8,0.22130402]
[1673636149260,24.76241517,1417.9,1417.8,0.22130402]